lending/lending_fUSD_20260325
["ID","MTS","AMOUNT","RATE_DAILY","PERIOD"]
[408898264,1774414231575,-295.99999997,0.00012825,2]
[408898265,1774414231586,-1604.00000003,0.00012825,2]
[408898266,1774414231596,-947.28,0.00013112,2]
[408898267,1774414231606,-503.63923282,0.0001315,2]
[408898268,1774414231616,-500.0,0.00013389,2]
[408898269,1774414231626,-1200.0,0.00013404,2]
[408898270,1774414231638,-300.0,0.00013404,2]
[408898271,1774414231648,-1200.0,0.00013404,2]
[408898272,1774414231658,-300.0,0.00013404,2]
[408898273,1774414231669,-500.0,0.00013405,2]
[408898274,1774414231680,-500.0,0.00013405,2]
[408898275,1774414231690,-500.0,0.00013405,2]
[408898276,1774414231700,-500.0,0.00013405,2]
[408898277,1774414231709,-500.0,0.00013405,2]
[408898278,1774414231719,-500.0,0.00013405,2]
[408898280,1774414231729,-500.0,0.00013405,2]
[408898282,1774414231739,-23.52448027,0.00013405,2]
[408898285,1774414231763,-449.97312723,0.00013405,2]
[408898286,1774414231774,-26.5023925,0.00013405,2]
[408898288,1774414231784,-500.0,0.00013405,2]
[408898289,1774414231794,-480.24930613,0.00013405,2]
[408898290,1774414231805,-227.74063078,0.00013445,2]
[408898291,1774414231814,-244.26094394,0.00013477,2]
[408898292,1774414231824,-350.0,0.00013479,2]
[408898293,1774414231833,-500.0,0.00013479,2]
[408898294,1774414231847,-411.36,0.00013482,2]
[408898295,1774414231858,-1977.3758462,0.000135,2]
[408898296,1774414231869,-422.88395274,0.00013558,3]
[408898297,1774414231879,-300.0,0.00013577,2]
[408898298,1774414231890,-150.0,0.00013579,2]
[408898299,1774414231901,-92834.5227,0.0001358,2]
[408898300,1774414231912,-2917.0584,0.0001358,2]
[408898301,1774414231924,-1000.0,0.0001358,2]
[408898302,1774414231934,-1625.24970585,0.0001358,2]
[408898303,1774414231944,-1861.5494,0.0001358,2]
[408898304,1774414231956,-500.0,0.00013672,2]
[408898305,1774414231966,-151.0,0.00013672,2]
[408898306,1774414231976,-500.0,0.00013672,2]
[408898307,1774414231986,-151.0,0.00013672,2]
[408898308,1774414231997,-500.0,0.00013672,2]
[408898309,1774414232008,-151.0,0.00013672,2]
[408898310,1774414232017,-500.0,0.00013672,2]
[408898311,1774414232027,-151.0,0.00013672,2]
[408898312,1774414232037,-453.84993238,0.00013672,2]
[408898313,1774414232047,-151.0,0.00013672,2]
[408898314,1774414232057,-151.0,0.00013672,2]
[408898315,1774414232066,-151.0,0.00013672,2]
[408898316,1774414232076,-151.0,0.00013672,2]
[408898317,1774414232086,-502.75901139,0.00013672,2]
[408898318,1774414232095,-151.0,0.00013672,2]
[408898319,1774414232104,-151.0,0.00013672,2]
[408898320,1774414232114,-151.0,0.00013672,2]
[408898321,1774414232124,-151.0,0.00013672,2]
[408898322,1774414232134,-151.0,0.00013672,2]
[408898323,1774414232144,-500.0,0.00013672,2]
[408898324,1774414232154,-151.0,0.00013672,2]
[408898325,1774414232163,-500.0,0.00013672,2]
[408898326,1774414232172,-500.0,0.00013672,2]
[408898327,1774414232182,-151.0,0.00013672,2]
[408898328,1774414232191,-500.0,0.00013672,2]
[408898329,1774414232201,-197.79122094,0.00013672,2]
[408898330,1774414232211,-500.0,0.00013672,2]
[408898331,1774414232221,-500.0,0.00013672,2]
[408898332,1774414232230,-643.86066983,0.00013672,2]
[408898333,1774414232240,-500.0,0.00013673,2]
[408898334,1774414232250,-502.68538186,0.00013673,2]
[408898335,1774414232259,-500.0,0.00013673,2]
[408898336,1774414232269,-500.0,0.00013673,2]
[408898337,1774414232278,-500.0,0.00013679,2]
[408898338,1774414232288,-500.0,0.00013679,2]
[408898339,1774414232297,-363.02786213,0.00013679,2]
[408898340,1774414232307,-500.0,0.00013679,2]
[408898341,1774414232316,-174.0,0.0001368,3]
[408898342,1774414232325,-180.0,0.0001368,3]
[408898343,1774414232334,-292615.94762114,0.0001368,2]
[408898344,1774414232344,-19000.08002047,0.0001368,2]
[408898345,1774414232357,-44917.80596418,0.0001368,2]
[408898346,1774414232368,-34442.81988755,0.0001368,2]
[408898347,1774414232378,-151.0,0.0001368,2]
[408898348,1774414232387,-151.0,0.0001368,2]
[408898349,1774414232396,-151.0,0.0001368,2]
[408898350,1774414232405,-500.0,0.0001368,2]
[408898351,1774414232415,-540.7608,0.0001368,2]
[408898352,1774414232424,-540.7608,0.0001368,2]
[408898353,1774414232433,-540.7608,0.0001368,2]
[408898354,1774414232442,-540.7608,0.0001368,2]
[408898355,1774414232452,-1366.553845,0.0001368,2]
[408898356,1774414232461,-1366.553845,0.0001368,2]
[408898357,1774414232470,-1366.553845,0.0001368,2]
[408898358,1774414232479,-1366.553845,0.0001368,2]
[408898359,1774414232489,-608.278914,0.0001368,2]
[408898360,1774414232498,-608.278914,0.0001368,2]
[408898361,1774414232507,-608.278914,0.0001368,2]
[408898362,1774414232517,-608.278914,0.0001368,2]
[408898363,1774414232526,-151.0,0.0001368,2]
[408898364,1774414232535,-151.0,0.0001368,2]
[408898365,1774414232544,-151.0,0.0001368,2]
[408898366,1774414232554,-160.883391,0.0001368,2]
[408898367,1774414232563,-435.139168,0.0001368,2]
[408898368,1774414232572,-435.139168,0.0001368,2]
[408898369,1774414232582,-435.139168,0.0001368,2]
[408898370,1774414232591,-435.139168,0.0001368,2]
[408898371,1774414232601,-151.0,0.0001368,2]
[408898372,1774414232610,-151.0,0.0001368,2]
[408898373,1774414232620,-509.43886537,0.00013698,2]
[408898374,1774414232630,-500.0,0.00013698,2]
[408898375,1774414232639,-150.0,0.00013699,2]
[408898376,1774414232649,-150.0,0.00013699,2]
[408898377,1774414232658,-1180.71,0.00013699,2]
[408898378,1774414232667,-164.85,0.00013699,2]
[408898379,1774414232676,-151.0,0.00013699,2]
[408898380,1774414232686,-655.100348,0.00013699,2]
[408898381,1774414232695,-655.100348,0.00013699,2]
[408898382,1774414232704,-655.100348,0.00013699,2]
[408898383,1774414232713,-655.100348,0.00013699,2]
[408898384,1774414232723,-296.516601,0.00013699,2]
[408898385,1774414232732,-296.516601,0.00013699,2]
[408898386,1774414232742,-296.516601,0.00013699,2]
[408898387,1774414232751,-296.516601,0.00013699,2]
[408898388,1774414232760,-22107.06,0.000137,2]
[408898389,1774414232769,-22107.06,0.000137,2]
[408898390,1774414232778,-500.0,0.00013726,2]
[408898391,1774414232787,-240.98130604,0.00013734,2]
[408898392,1774414232797,-964.2394491,0.00013751,2]
[408898393,1774414232806,-500.0,0.00013787,2]
[408898394,1774414232815,-500.0,0.00013787,2]
[408898395,1774414232824,-500.0,0.00013787,2]
[408898396,1774414232833,-500.0,0.00013787,2]
[408898397,1774414232845,-513.73164511,0.00013787,2]
[408898398,1774414232855,-500.0,0.00013787,2]
[408898399,1774414232864,-513.54711721,0.00013787,2]
[408898400,1774414232874,-510.26922287,0.00013787,2]
[408898401,1774414232883,-500.0,0.00013787,2]
[408898402,1774414232893,-534.34010684,0.00013787,2]
[408898403,1774414232902,-347.64612284,0.00013789,2]
[408898404,1774414232911,-152.60105039,0.00013789,2]
[408898405,1774414232921,-200.0,0.00013789,2]
[408898406,1774414232931,-200.0,0.00013789,2]
[408898407,1774414232940,-200.0,0.00013789,2]
[408898408,1774414232950,-153.0,0.00013789,2]
[408898409,1774414232959,-153.0,0.00013789,2]
[408898410,1774414232968,-500.0,0.00013789,2]
[408898411,1774414232978,-200.0,0.00013789,2]
[408898412,1774414232987,-258.07626907,0.00013838,2]
[408898413,1774414233000,-772.83206182,0.00013838,2]
[408898414,1774414237592,-594.3413749,0.00013838,2]
[408898415,1774414237602,-260.73459213,0.00013838,2]
[408898416,1774414237611,-151.0,0.00013838,2]
[408898417,1774414237620,-151.0,0.00013838,2]
[408898418,1774414237630,-260.73459213,0.00013838,2]
[408898419,1774414237639,-2898.45,0.00013918,2]
[408898420,1774414237649,-737.27,0.00013924,2]
[408898421,1774414237658,-200.0,0.00013927,2]
[408898422,1774414237667,-200.0,0.00013927,2]
[408898423,1774414237676,-200.0,0.00013927,2]
[408898424,1774414237685,-38.37744084,0.00013927,2]
[408898425,1774414237807,-161.62255916,0.00013927,2]
[408898427,1774414237816,-151.0,0.00013929,2]
[408898429,1774414237826,-151.0,0.00013929,2]
[408898430,1774414237835,-151.0,0.00013929,2]
[408898431,1774414237845,-151.0,0.00013929,2]
[408898432,1774414237856,-155.0,0.00013931,2]
[408898433,1774414237866,-500.0,0.00013931,2]
[408898434,1774414237875,-135.47628921,0.00013931,2]
[408898438,1774414244820,-364.52371079,0.00013931,2]
[408898439,1774414244831,-500.0,0.00013931,2]
[408898441,1774414244841,-500.0,0.00013931,2]
[408898443,1774414244855,-500.0,0.00013931,2]
[408898446,1774414244864,-500.0,0.00013931,2]
[408898448,1774414244873,-135.47628921,0.00013931,2]
[408898450,1774414244885,-38.3467722,0.00013931,2]
[408898452,1774414244894,-155.80315117,0.00013931,2]
[408898454,1774414244903,-173.82306141,0.00013931,2]
[408898456,1774414244912,-268.35013868,0.00013986,2]
[408898458,1774414244925,-231.64986132,0.00013986,2]
[408898459,1774414244934,-578.20924308,0.00013986,2]
[408898461,1774414244943,-500.0,0.00013986,2]
[408898463,1774414244952,-151.0,0.00013986,2]
[408898465,1774414244961,-721.12765535,0.00013986,2]
[408898467,1774414244971,-500.0,0.00013986,2]
[408898469,1774414244980,-500.0,0.00013986,2]
[408898471,1774414244989,-500.0,0.00013986,2]
[408898472,1774414244998,-500.0,0.00013986,2]
[408898474,1774414245007,-500.0,0.00013986,2]
[408898476,1774414245017,-500.0,0.00013986,2]
[408898478,1774414245026,-500.0,0.00013986,2]
[408898480,1774414245035,-500.0,0.00013986,2]
[408898481,1774414245044,-500.0,0.00013986,2]
[408898483,1774414245054,-500.0,0.00013986,2]
[408898485,1774414245063,-500.0,0.00013986,2]
[408898487,1774414245072,-500.0,0.00013986,2]
[408898489,1774414245082,-500.0,0.00013986,2]
[408898491,1774414245092,-151.0,0.00013986,2]
[408898493,1774414245102,-500.0,0.00013986,2]
[408898495,1774414245111,-500.0,0.00013986,2]
[408898497,1774414245120,-500.0,0.00013986,2]
[408898499,1774414245129,-500.0,0.00013986,2]
[408898501,1774414245138,-500.0,0.00013986,2]
[408898503,1774414245147,-174.61919141,0.00013986,2]
[408898505,1774414245157,-500.0,0.00013986,2]
[408898507,1774414245166,-500.0,0.00013986,2]
[408898509,1774414245179,-500.0,0.00013986,2]
[408898510,1774414245188,-500.0,0.00013986,2]
[408898512,1774414245197,-200.0,0.00013986,2]
[408898514,1774414245207,-262.90206542,0.00013986,2]
[408898516,1774414245216,-250.0,0.00013986,2]
[408898518,1774414245226,-250.0,0.00013986,2]
[408898520,1774414245236,-693.3919763,0.00013986,2]
[408898522,1774414245245,-250.0,0.00013986,2]
[408898524,1774414245254,-250.0,0.00013986,2]
[408898526,1774414245264,-250.0,0.00013986,2]
[408898528,1774414245273,-162.12860963,0.00013986,2]
[408898529,1774414245283,-250.0,0.00013986,2]
[408898531,1774414245292,-250.0,0.00013986,2]
[408898533,1774414245302,-250.0,0.00013986,2]
[408898535,1774414245311,-250.0,0.00013986,2]
[408898537,1774414245321,-250.0,0.00013986,2]
[408898539,1774414245330,-250.0,0.00013986,2]
[408898541,1774414245339,-151.0,0.00013986,2]
[408898543,1774414245349,-151.0,0.00013986,2]
[408898545,1774414245358,-151.0,0.00013986,2]
[408898547,1774414245368,-435.139168,0.00013986,2]
[408898548,1774414245377,-435.139168,0.00013986,2]
[408898549,1774414245386,-435.139168,0.00013986,2]
[408898550,1774414245399,-435.139168,0.00013986,2]
[408898551,1774414245409,-151.0,0.00013986,2]
[408898552,1774414245418,-151.0,0.00013986,2]
[408898553,1774414245428,-509.0,0.00014,2]
[408898554,1774414245437,-1166.11,0.0001401,2]
[408898555,1774414245446,-698.35615,0.0001402,2]
[408898556,1774414245456,-698.35615,0.0001404,2]
[408898557,1774414245465,-500.0,0.00014041,2]
[408898558,1774414245475,-151.0,0.00014041,2]
[408898559,1774414245484,-698.35616,0.0001405,2]
[408898560,1774414245496,-200.0,0.00014066,2]
[408898561,1774414245506,-200.0,0.00014066,2]
[408898562,1774414245515,-200.0,0.00014066,2]
[408898563,1774414245524,-200.0,0.00014066,2]
[408898564,1774414245534,-700.0,0.00014082,2]
[408898565,1774414245543,-350.0,0.00014091,2]
[408898566,1774414245552,-1625.24970579,0.00014096,2]
[408898567,1774414245562,-500.0,0.00014096,2]
[408898568,1774414245571,-151.0,0.00014096,2]
[408898569,1774414245580,-2854.25536305,0.00014108,2]
[408898570,1774414245590,-300.0,0.00014108,2]
[408898571,1774414245600,-608.278914,0.00014116,2]
[408898572,1774414245611,-608.278914,0.00014116,2]
[408898573,1774414245620,-608.278914,0.00014116,2]
[408898574,1774414245630,-608.278914,0.00014116,2]
[408898575,1774414245639,-350.0,0.00014145,2]
[408898576,1774414245649,-500.0,0.00014151,2]
[408898577,1774414245659,-151.0,0.00014151,2]
[408898578,1774414245668,-698.35615,0.00014156,2]
[408898579,1774414245678,-698.35615,0.00014156,2]
[408898580,1774414245691,-698.35615,0.00014156,2]
[408898581,1774414245700,-737.27,0.00014198,2]
[408898582,1774414245710,-500.0,0.00014206,2]
[408898583,1774414245720,-151.0,0.00014206,2]
[408898584,1774414245730,-200.0,0.00014207,2]
[408898585,1774414245739,-200.0,0.00014207,2]
[408898589,1774414246128,-200.0,0.00014207,2]
[408898590,1774414246141,-200.0,0.00014207,2]
[408898591,1774414246151,-667.05035616,0.00014221,2]
[408898592,1774414246163,-1000.0,0.00014221,2]
[408898593,1774414246173,-151.0,0.00014221,2]
[408898594,1774414246182,-151.0,0.00014221,2]
[408898595,1774414246191,-151.0,0.00014221,2]
[408898596,1774414246200,-151.0,0.00014221,2]
[408898597,1774414246209,-215.891258,0.00014221,2]
[408898598,1774414246218,-151.0,0.00014243,2]
[408898599,1774414246227,-151.0,0.00014243,2]
[408898600,1774414246236,-151.0,0.00014243,2]
[408898601,1774414246246,-19.1552172,0.00014261,2]
[408898602,1774414246267,-480.8447828,0.00014261,2]
[408898603,1774414246277,-151.0,0.00014261,2]
[408898604,1774414246287,-150.0,0.000143,2]
[408898605,1774414246296,-500.0,0.00014316,2]
[408898606,1774414246305,-151.0,0.00014316,2]
[408898607,1774414246319,-200.0,0.00014349,2]
[408898608,1774414246328,-200.0,0.00014349,2]
[408898609,1774414246337,-200.0,0.00014349,2]
[408898610,1774414246347,-200.0,0.00014349,2]
[408898611,1774414246357,-540.7608,0.00014353,2]
[408898612,1774414246366,-540.7608,0.00014353,2]
[408898613,1774414246376,-540.7608,0.00014353,2]
[408898614,1774414246385,-540.7608,0.00014353,2]
[408898615,1774414246394,-151.0,0.00014353,2]
[408898616,1774414246403,-1625.24970579,0.00014353,2]
[408898617,1774414246413,-151.83022193,0.00014356,2]
[408898618,1774414246457,-500.0,0.0001426,2]
[408898619,1774414246466,-726.0,0.00014356,2]
[408898620,1774414246477,-122.16977807,0.00014356,2]
[408898621,1774414246486,-500.0,0.00014371,2]
[408898622,1774414246495,-151.0,0.00014371,2]
[408898623,1774414246505,-1180.71,0.00014384,2]
[408898624,1774414246514,-655.100348,0.00014384,2]
[408898625,1774414246523,-655.100348,0.00014384,2]
[408898626,1774414246533,-655.100348,0.00014384,2]
[408898627,1774414246542,-655.100348,0.00014384,2]
[408898628,1774414246552,-296.516601,0.00014384,2]
[408898629,1774414246561,-296.516601,0.00014384,2]
[408898630,1774414246570,-296.516601,0.00014384,2]
[408898631,1774414246580,-296.516601,0.00014384,2]
[408898632,1774414246589,-1366.553845,0.00014384,2]
[408898633,1774414246598,-1366.553845,0.00014384,2]
[408898634,1774414246606,-1366.553845,0.00014384,2]
[408898635,1774414246616,-1366.553845,0.00014384,2]
[408898636,1774414246625,-439.76540134,0.00014404,2]
[408898637,1774414246635,-500.0,0.00014426,2]
[408898638,1774414246644,-151.0,0.00014426,2]
[408898639,1774414246654,-151.0,0.00014426,2]
[408898640,1774414246663,-151.0,0.00014426,2]
[408898641,1774414246672,-151.0,0.00014426,2]
[408898642,1774414246682,-435.139168,0.00014428,2]
[408898643,1774414246692,-435.139168,0.00014428,2]
[408898644,1774414246701,-435.139168,0.00014428,2]
[408898645,1774414246711,-435.139168,0.00014428,2]
[408898646,1774414246720,-151.0,0.00014428,2]
[408898647,1774414246730,-151.0,0.00014428,2]
[408898648,1774414246740,-2000.0,0.00014429,2]
[408898649,1774414246750,-350.0,0.00014451,2]
[408898650,1774414246759,-169.11497259,0.0001446,2]
[408898666,1774414997539,155.55,6.556e-05,2]
[408898667,1774414997594,155.55,7.649e-05,2]
[408898668,1774414997637,155.55,8.741e-05,2]
[408898669,1774414997681,155.55,9.834e-05,2]
[408898670,1774414997722,155.55,0.00010927,2]
[408898671,1774414997773,155.55,0.00012019,2]
[408898673,1774415431806,-1087.32,0.00012714,2]
[408898674,1774415431817,-233.67,0.00012755,2]
[408898675,1774415431826,-263.0,0.00012999,2]
[408898676,1774415431836,-337.98847326,0.00012999,2]
[408898677,1774415431848,-862.01152674,0.00012999,2]
[408898678,1774415431857,-300.0,0.00012999,2]
[408898679,1774415431867,-157.97050474,0.00013,2]
[408898680,1774415431899,-933.29910589,0.00013,2]
[408898681,1774415431917,-6935.26548682,0.00013,2]
[408898682,1774415431928,-250.0,0.00013,2]
[408898683,1774415431939,-300.0,0.00013111,2]
[408898684,1774415431950,-155.55,0.00013112,2]
[408898685,1774415431960,-951.18,0.00013112,2]
[408898686,1774415431970,-5929.61,0.00013112,2]
[408898687,1774415431979,-150.0,0.00013118,2]
[408898688,1774415431990,-233.67,0.00013464,2]
[408898689,1774415431999,-166.66,0.00013505,2]
[408898690,1774415432010,-309.93,0.00013557,2]
[408898691,1774415432019,-1000.0,0.0001358,2]
[408898692,1774415432029,-704.5291,0.00013597,2]
[408898694,1774415432038,-578.20924308,0.00013618,2]
[408898695,1774415432048,-500.0,0.00013618,2]
[408898696,1774415432062,-539.0,0.00013643,2]
[408898697,1774415432072,-1172.0,0.00013663,2]
[408898698,1774415432081,-500.0,0.00013673,2]
[408898700,1774415432091,-155.0,0.00013696,2]
[408898702,1774415432100,-150.0,0.00013696,2]
[408898703,1774415432110,-150.31215896,0.00013696,2]
[408898704,1774415432120,-2996.06,0.00013697,2]
[408898705,1774415432130,-5683.42,0.00013697,2]
[408898706,1774415432139,-2173.14,0.00013697,2]
[408898707,1774415432149,-299.99,0.00013697,2]
[408898708,1774415432158,-12630.29,0.00013697,2]
[408898709,1774415432167,-172.7,0.00013697,2]
[408898711,1774415432177,-150.99,0.00013697,2]
[408898712,1774415432188,-19869.36582102,0.00013697,2]
[408898713,1774415432202,-31076.93852777,0.00013697,2]
[408898714,1774415432214,-303.72702952,0.00013697,2]
[408898717,1774415437790,-443.21634454,0.00013697,2]
[408898771,1774415438688,-653.07,0.00013697,2]
[408898774,1774415438704,-1120.43290127,0.00013697,2]
[408898776,1774415438715,-1168.05673497,0.00013697,2]
[408898779,1774415438726,-16437.20481205,0.00013697,2]
[408898781,1774415438737,-28480.0,0.00013697,2]
[408898786,1774415438778,166.66,0.00012456,2]
[408898802,1774415439961,-678.36731,0.00012691,2]
[408898803,1774415439970,-166.66,0.00012719,2]
[408898804,1774415439980,-166.66,0.00012981,2]
[408898805,1774415439989,-166.66,0.00013243,2]
[408898806,1774415439998,-166.66,0.00013505,2]
[408898807,1774415440007,-14681.80171417,0.00013697,2]
[408898808,1774415440018,-24842.0394172,0.00013697,2]
[408898809,1774415440029,-355.64558,0.00013697,2]
[408898810,1774415440040,-3749.88529281,0.00013697,2]
[408898827,1774415442901,-31149.67582468,0.00013697,2]
[408898828,1774415442911,-9999.99,0.00013697,2]
[408898829,1774415442920,-1569.24,0.00013697,2]
[408898830,1774415442930,-9999.99,0.00013697,2]
[408898831,1774415442940,-999.99,0.00013697,2]
[408898832,1774415442950,-500.0,0.00013698,2]
[408898833,1774415442960,-486.3184443,0.00013698,2]
[408898834,1774415442969,-500.0,0.00013698,2]
[408898835,1774415442978,-500.0,0.00013698,2]
[408898836,1774415442988,-500.0,0.00013698,2]
[408898837,1774415442998,-500.0,0.00013698,2]
[408898838,1774415443007,-500.0,0.00013698,2]
[408898839,1774415443017,-500.0,0.00013698,2]
[408898840,1774415443027,-200.0,0.00013699,2]
[408898841,1774415443037,-1166.66,0.00013699,2]
[408898842,1774415443046,-343.58746921,0.000137,2]
[408898843,1774415443056,-191.0,0.00013714,2]
[408898844,1774415443065,-151.0,0.00013718,2]
[408898845,1774415443076,-174.61919141,0.00013718,2]
[408898846,1774415443085,-693.3919763,0.00013718,2]
[408898847,1774415443095,-9166.4987804,0.00013726,2]
[408898848,1774415443104,-500.0,0.00013726,2]
[408898849,1774415443114,-500.0,0.00013728,2]
[408898850,1774415443123,-583.0,0.00013757,2]
[408898851,1774415443133,-166.66,0.00013768,2]
[408898852,1774415443142,-335.0,0.00013769,2]
[408898853,1774415443152,-151.0,0.00013773,2]
[408898854,1774415443161,-500.0,0.00013783,2]
[408898855,1774415443171,-666.54633037,0.00013817,2]
[408898856,1774415443180,-151.0,0.00013828,2]
[408898857,1774415443190,-500.0,0.00013838,2]
[408898858,1774415443202,-350.0,0.00013861,2]
[408898859,1774415443212,-151.0,0.00013883,2]
[408898860,1774415443221,-1651.2525,0.00013886,2]
[408898861,1774415443230,-500.0,0.00013893,2]
[408898862,1774415443241,-540.63437119,0.00013931,2]
[408898863,1774415443251,-151.0,0.00013938,2]
[408898864,1774415443260,-500.0,0.00013948,2]
[408898865,1774415443271,-166.66,0.00013951,2]
[408898866,1774415443280,-151.0,0.00013978,2]
[408898867,1774415443290,-721.12765535,0.00013978,2]
[408898868,1774415443299,-151.0,0.00013978,2]
[408898869,1774415443309,-200.0,0.00013978,2]
[408898870,1774415443319,-377.90355045,0.00013978,2]
[408898871,1774415443328,-500.0,0.00013978,2]
[408898872,1774415443337,-500.0,0.00013978,2]
[408898873,1774415443347,-500.0,0.00013978,2]
[408898874,1774415443357,-500.0,0.00013978,2]
[408898875,1774415443366,-500.0,0.00013978,2]
[408898876,1774415443376,-250.0,0.00013978,2]
[408898877,1774415443385,-500.0,0.00013978,2]
[408898878,1774415443394,-250.0,0.00013978,2]
[408898879,1774415443404,-500.0,0.00013978,2]
[408898880,1774415443413,-250.0,0.00013978,2]
[408898881,1774415443422,-500.0,0.00013978,2]
[408898882,1774415443432,-250.0,0.00013978,2]
[408898883,1774415443442,-500.0,0.00013978,2]
[408898884,1774415443451,-250.0,0.00013978,2]
[408898885,1774415443460,-200.0,0.00013978,2]
[408898886,1774415443470,-500.0,0.00013978,2]
[408898887,1774415443479,-250.0,0.00013978,2]
[408898888,1774415443487,-500.0,0.00013978,2]
[408898889,1774415443496,-250.0,0.00013978,2]
[408898890,1774415443506,-54.6729356,0.00013978,2]
[408898891,1774415443517,-195.3270644,0.00013978,2]
[408898892,1774415443527,-250.0,0.00013978,2]
[408898893,1774415443536,-250.0,0.00013978,2]
[408898894,1774415443545,-250.0,0.00013978,2]
[408898895,1774415443554,-842.54109405,0.00013978,2]
[408898896,1774415443563,-375.77609355,0.00013978,2]
[408898897,1774415443572,-392.86549759,0.00013978,2]
[408898898,1774415443588,-107.13450241,0.00013978,2]
[408898899,1774415443598,-500.0,0.00013978,2]
[408898901,1774415443607,-500.0,0.00013978,2]
[408898902,1774415443616,-500.0,0.00013978,2]
[408898903,1774415443626,-555.51013956,0.00013978,2]
[408898904,1774415443635,-500.0,0.00013984,2]
[408898905,1774415443645,-398.8434505,0.00013984,2]
[408898906,1774415443655,-500.0,0.00013985,2]
[408898907,1774415443666,-500.0,0.00013985,2]
[408898908,1774415443676,-500.0,0.00013985,2]
[408898909,1774415443687,-500.0,0.00013985,2]
[408898910,1774415443697,-500.0,0.00013985,2]
[408898911,1774415443706,-500.0,0.00013985,2]
[408898912,1774415443715,-500.0,0.00013985,2]
[408898913,1774415443725,-508.45381877,0.00013985,2]
[408898914,1774415443735,-500.0,0.00013985,2]
[408898915,1774415443745,-500.0,0.00013985,2]
[408898916,1774415443754,-500.0,0.00013985,2]
[408898917,1774415443763,-500.0,0.00013985,2]
[408898918,1774415443772,-500.0,0.00013985,2]
[408898919,1774415443782,-500.0,0.00013985,2]
[408898920,1774415443791,-151.0,0.00013993,2]
[408898921,1774415443801,-508.0,0.00014,2]
[408898922,1774415443811,-500.0,0.00014,2]
[408898923,1774415443820,-500.0,0.00014003,2]
[408898924,1774415443830,-193.0,0.00014013,2]
[408898925,1774415443842,-304.0,0.00014018,2]
[408898926,1774415443851,-252.0,0.00014023,2]
[408898927,1774415443860,-350.0,0.00014025,2]
[408898928,1774415443871,-2770.72778318,0.0001403,2]
[408898929,1774415443881,-151.0,0.00014048,2]
[408898930,1774415443890,-500.0,0.00014058,2]
[408898931,1774415443900,-2831.46728348,0.00014058,2]
[408898932,1774415443909,-310.0,0.00014067,2]
[408898933,1774415443918,-700.0,0.00014082,2]
[408898934,1774415443927,-151.0,0.00014103,2]
[408898935,1774415443938,-500.0,0.00014113,2]
[408898936,1774415443949,-3507.32481789,0.00014115,2]
[408898937,1774415443959,-151.0,0.00014158,2]
[408898938,1774415443968,-500.0,0.00014168,2]
[408898939,1774415443978,-233.67,0.00014172,2]
[408898940,1774415443988,-151.0,0.00014213,2]
[408898941,1774415443999,-420.0,0.00014256,2]
[408898942,1774415444008,-181.08010149,0.00014266,2]
[408898943,1774415444017,-303.96684791,0.00014266,2]
[408898944,1774415444026,-151.0,0.00014268,2]
[408898945,1774415444036,-467.18599342,0.00014274,2]